[Event "*** Titled Tuesday Blitz"]
[Site "Chess.com"]
[Date "2020.12.29"]
[Round "10"]
[White "CM_rui"]
[Black "UCantHandleDenker"]
[Result "0-1"]
[WhiteElo "2349"]
[BlackElo "2545"]
[TimeControl "180+1"]
[EndTime "11:55:55 PST"]
[Termination "UCantHandleDenker won on time"]

1. e4 {[%clk 0:03:00.9]} 1... d6 {[%clk 0:02:59.2]} 2. d4 {[%clk 0:03:00.8]}
2... Nf6 {[%clk 0:02:59.6]} 3. f3 {[%clk 0:02:59.5]} 3... g6 {[%clk 0:02:59.4]}
4. c4 {[%clk 0:02:59.5]} 4... Bg7 {[%clk 0:03:00]} 5. Nc3 {[%clk 0:02:59.7]}
5... O-O {[%clk 0:03:00.3]} 6. Nge2 {[%clk 0:02:54.3]} 6... c5 {[%clk
0:02:59.4]} 7. Be3 {[%clk 0:02:54.6]} 7... Nc6 {[%clk 0:02:57.9]} 8. Qd2 {[%clk
0:02:52.9]} 8... b6 {[%clk 0:02:53.9]} 9. Rc1 {[%clk 0:02:47.2]} 9... e6 {[%clk
0:02:52.6]} 10. h4 {[%clk 0:02:44.8]} 10... Ba6 {[%clk 0:02:45.6]} 11. b3 {[%clk
0:02:44]} 11... Rc8 {[%clk 0:02:45.3]} 12. Rd1 {[%clk 0:02:33.5]} 12... h5
{[%clk 0:02:37]} 13. d5 {[%clk 0:02:30.2]} 13... exd5 {[%clk 0:02:36.1]} 14.
Nxd5 {[%clk 0:02:30]} 14... Nxd5 {[%clk 0:02:35.7]} 15. Qxd5 {[%clk 0:02:27.5]}
15... Nb4 {[%clk 0:02:34.6]} 16. Qxd6 {[%clk 0:02:18.8]} 16... Nc2+ {[%clk
0:02:28.4]} 17. Kf2 {[%clk 0:02:19.1]} 17... Nxe3 {[%clk 0:02:28.4]} 18. Kxe3
{[%clk 0:02:19.6]} 18... Qxd6 {[%clk 0:02:20.7]} 19. Rxd6 {[%clk 0:02:19]} 19...
Rfd8 {[%clk 0:02:21.2]} 20. Rd5 {[%clk 0:02:09.9]} 20... Bb7 {[%clk 0:02:19.3]}
21. Nf4 {[%clk 0:01:53.9]} 21... Bxd5 {[%clk 0:02:00.5]} 22. Nxd5 {[%clk
0:01:54.8]} 22... Bd4+ {[%clk 0:01:59.1]} 23. Kf4 {[%clk 0:01:48.4]} 23... Kg7
{[%clk 0:01:56]} 24. Bd3 {[%clk 0:01:46.8]} 24... f6 {[%clk 0:01:51.2]} 25. g4
{[%clk 0:01:39.2]} 25... Rh8 {[%clk 0:01:39.3]} 26. g5 {[%clk 0:01:36.8]} 26...
fxg5+ {[%clk 0:01:34.6]} 27. Kxg5 {[%clk 0:01:30.7]} 27... Rcf8 {[%clk
0:01:32.5]} 28. f4 {[%clk 0:01:26.2]} 28... Rd8 {[%clk 0:00:36.6]} 29. e5 {[%clk
0:01:19.4]} 29... Rhe8 {[%clk 0:00:33.7]} 30. Bxg6 {[%clk 0:01:10.7]} 30... Re6
{[%clk 0:00:27.6]} 31. Bxh5 {[%clk 0:00:43.8]} 31... Bxe5 {[%clk 0:00:23.3]} 32.
fxe5 {[%clk 0:00:44.7]} 32... Rxe5+ {[%clk 0:00:23.7]} 33. Kg4 {[%clk
0:00:44.7]} 33... Kh6 {[%clk 0:00:22.9]} 34. Bf7 {[%clk 0:00:33.7]} 34... Rf8
{[%clk 0:00:23]} 35. Rf1 {[%clk 0:00:33.6]} 35... Re4+ {[%clk 0:00:23.1]} 36.
Kg3 {[%clk 0:00:28.3]} 36... Kg7 {[%clk 0:00:22]} 37. h5 {[%clk 0:00:13.5]}
37... Rxf7 {[%clk 0:00:18.8]} 38. h6+ {[%clk 0:00:13.7]} 38... Kg6 {[%clk
0:00:10]} 39. Rxf7 {[%clk 0:00:10]} 39... Kxf7 {[%clk 0:00:10.1]} 40. h7 {[%clk
0:00:10.3]} 40... Kg7 {[%clk 0:00:10.3]} 41. Kf3 {[%clk 0:00:07.1]} 41... Rh4
{[%clk 0:00:09.4]} 42. Ke3 {[%clk 0:00:04.4]} 42... Rxh7 {[%clk 0:00:07.5]} 43.
Ke4 {[%clk 0:00:05.3]} 43... Kf7 {[%clk 0:00:07.3]} 44. Ke5 {[%clk 0:00:05.1]}
44... Ke8 {[%clk 0:00:07.1]} 45. Kd6 {[%clk 0:00:04.9]} 45... Kd8 {[%clk
0:00:06.4]} 46. Kc6 {[%clk 0:00:05]} 46... Kc8 {[%clk 0:00:05.5]} 47. Kb5 {[%clk
0:00:05.3]} 47... Kb7 {[%clk 0:00:05.4]} 48. Ka4 {[%clk 0:00:04.1]} 48... a6
{[%clk 0:00:05.6]} 49. a3 {[%clk 0:00:04.5]} 49... Rh2 {[%clk 0:00:05.9]} 50.
Nc3 {[%clk 0:00:04.7]} 50... Kc6 {[%clk 0:00:05.9]} 51. Nd5 {[%clk 0:00:04.7]}
51... Rb2 {[%clk 0:00:05.6]} 52. Nc3 {[%clk 0:00:04.5]} 52... Rc2 {[%clk
0:00:05.6]} 53. Ne4 {[%clk 0:00:03.7]} 53... Ra2 {[%clk 0:00:05.4]} 54. Nc3
{[%clk 0:00:03.6]} 54... Ra1 {[%clk 0:00:05.9]} 55. Nd5 {[%clk 0:00:03.7]} 55...
b5+ {[%clk 0:00:06.3]} 0-1

[Event "*** Titled Tuesday Blitz"]
[Site "Chess.com"]
[Date "2020.12.29"]
[Round "10"]
[White "EugeneRougon"]
[Black "Alexandr_Kholin"]
[Result "1-0"]
[WhiteElo "2766"]
[BlackElo "2572"]
[TimeControl "180+1"]
[EndTime "11:56:00 PST"]
[Termination "EugeneRougon won on time"]

1. e4 {[%clk 0:03:00.9]} 1... c6 {[%clk 0:02:59.7]} 2. d4 {[%clk 0:03:00.7]}
2... d5 {[%clk 0:03:00.6]} 3. Nc3 {[%clk 0:03:01.1]} 3... dxe4 {[%clk
0:03:00.8]} 4. Nxe4 {[%clk 0:03:02]} 4... Bf5 {[%clk 0:03:01.3]} 5. Ng3 {[%clk
0:03:01.9]} 5... Bg6 {[%clk 0:03:01.9]} 6. h4 {[%clk 0:03:02.4]} 6... h6 {[%clk
0:03:01.6]} 7. Nf3 {[%clk 0:03:03]} 7... Nd7 {[%clk 0:03:01.2]} 8. h5 {[%clk
0:03:02.9]} 8... Bh7 {[%clk 0:03:01.3]} 9. Bd3 {[%clk 0:03:03.8]} 9... Bxd3
{[%clk 0:03:01.6]} 10. Qxd3 {[%clk 0:03:04.7]} 10... Ngf6 {[%clk 0:03:02.1]} 11.
Bd2 {[%clk 0:03:04.7]} 11... e6 {[%clk 0:03:02.5]} 12. O-O-O {[%clk 0:03:04.8]}
12... Be7 {[%clk 0:03:03]} 13. Ne4 {[%clk 0:03:01.4]} 13... Nxe4 {[%clk
0:03:02.3]} 14. Qxe4 {[%clk 0:03:02.3]} 14... Nf6 {[%clk 0:03:03.2]} 15. Qd3
{[%clk 0:03:02.7]} 15... Qd5 {[%clk 0:03:02.3]} 16. c4 {[%clk 0:03:02.2]} 16...
Qe4 {[%clk 0:03:02.2]} 17. Qb3 {[%clk 0:03:02.8]} 17... b5 {[%clk 0:03:00]} 18.
Rde1 {[%clk 0:02:58.6]} 18... Qg4 {[%clk 0:02:53.2]} 19. Ne5 {[%clk 0:02:53]}
19... Qxg2 {[%clk 0:02:37.9]} 20. Rhg1 {[%clk 0:02:40.4]} 20... Qh2 {[%clk
0:02:24.2]} 21. Nxc6 {[%clk 0:02:35.5]} 21... Bd6 {[%clk 0:02:18.7]} 22. Rxg7
{[%clk 0:02:04]} 22... Kf8 {[%clk 0:02:04.2]} 23. Rgg1 {[%clk 0:01:42]} 23...
bxc4 {[%clk 0:01:42.9]} 24. Qb7 {[%clk 0:01:35.1]} 24... Re8 {[%clk 0:01:39.1]}
25. Bb4 {[%clk 0:01:12]} 25... Nd5 {[%clk 0:01:36.3]} 26. Ne5 {[%clk 0:01:00.6]}
26... Qf4+ {[%clk 0:01:31.6]} 27. Bd2 {[%clk 0:01:00.3]} 27... Bxe5 {[%clk
0:00:38.6]} 28. dxe5 {[%clk 0:00:16.6]} 28... Qh4 {[%clk 0:00:15.5]} 29. Qxa7
{[%clk 0:00:08]} 29... c3 {[%clk 0:00:15.2]} 30. bxc3 {[%clk 0:00:07.9]} 30...
Qc4 {[%clk 0:00:15]} 31. Qa3+ {[%clk 0:00:07.3]} 31... Ne7 {[%clk 0:00:13.9]}
32. Be3 {[%clk 0:00:05.5]} 32... Rc8 {[%clk 0:00:12.7]} 33. Bd2 {[%clk
0:00:05.2]} 33... Ke8 {[%clk 0:00:11.6]} 34. Rg3 {[%clk 0:00:04.7]} 34... Nd5
{[%clk 0:00:11.2]} 35. Qb3 {[%clk 0:00:04.7]} 35... Kd7 {[%clk 0:00:09.1]} 36.
Qxc4 {[%clk 0:00:04.9]} 36... Rxc4 {[%clk 0:00:09.6]} 37. Kc2 {[%clk 0:00:05.5]}
37... Rhc8 {[%clk 0:00:09.5]} 38. Rc1 {[%clk 0:00:04.5]} 38... Nb4+ {[%clk
0:00:07.9]} 39. Kb3 {[%clk 0:00:04.6]} 39... Nd5 {[%clk 0:00:08.8]} 40. Rd3
{[%clk 0:00:04.3]} 40... Ke7 {[%clk 0:00:08.4]} 41. f3 {[%clk 0:00:03.2]} 41...
Rh4 {[%clk 0:00:06.8]} 42. c4 {[%clk 0:00:02.8]} 42... Nf4 {[%clk 0:00:05.6]}
43. Bb4+ {[%clk 0:00:03.3]} 43... Ke8 {[%clk 0:00:05.1]} 44. Rd4 {[%clk
0:00:03.8]} 44... Ng2 {[%clk 0:00:04]} 45. Rxh4 {[%clk 0:00:03.6]} 45... Nxh4
{[%clk 0:00:04.9]} 46. Rg1 {[%clk 0:00:03.9]} 46... Nxf3 {[%clk 0:00:04.1]} 47.
Rg8+ {[%clk 0:00:04.1]} 47... Kd7 {[%clk 0:00:04.5]} 48. Rg7 {[%clk 0:00:04.7]}
48... Nxe5 {[%clk 0:00:04.5]} 49. Rh7 {[%clk 0:00:04.7]} 49... Nxc4 {[%clk
0:00:03.4]} 50. Rxf7+ {[%clk 0:00:05]} 50... Ke8 {[%clk 0:00:03.7]} 51. Rf8+
{[%clk 0:00:05.3]} 51... Kd7 {[%clk 0:00:03.4]} 52. Rxc8 {[%clk 0:00:06.2]}
52... Kxc8 {[%clk 0:00:04.1]} 53. Kxc4 {[%clk 0:00:06.7]} 1-0

[Event "*** Titled Tuesday Blitz"]
[Site "Chess.com"]
[Date "2020.12.29"]
[Round "10"]
[White "Eloist"]
[Black "Neftegor"]
[Result "0-1"]
[WhiteElo "2350"]
[BlackElo "2549"]
[TimeControl "180+1"]
[EndTime "11:56:00 PST"]
[Termination "Neftegor won on time"]

1. e4 {[%clk 0:03:00.9]} 1... e6 {[%clk 0:02:57.4]} 2. d4 {[%clk 0:03:00.3]}
2... d5 {[%clk 0:02:57.4]} 3. Nd2 {[%clk 0:03:00.1]} 3... Be7 {[%clk 0:02:56.1]}
4. e5 {[%clk 0:02:58.6]} 4... c5 {[%clk 0:02:54.6]} 5. c3 {[%clk 0:02:59]} 5...
cxd4 {[%clk 0:02:54.4]} 6. cxd4 {[%clk 0:02:58.4]} 6... Qb6 {[%clk 0:02:54]} 7.
Ndf3 {[%clk 0:02:47.7]} 7... Bd7 {[%clk 0:02:44.6]} 8. Ne2 {[%clk 0:02:28.5]}
8... Bb5 {[%clk 0:02:39.1]} 9. Nf4 {[%clk 0:02:14.3]} 9... Nc6 {[%clk
0:02:31.8]} 10. Nh5 {[%clk 0:01:45.2]} 10... g6 {[%clk 0:02:28.1]} 11. Nf4
{[%clk 0:01:42.5]} 11... h5 {[%clk 0:02:02.9]} 12. Bd3 {[%clk 0:01:25.7]} 12...
Bb4+ {[%clk 0:01:55]} 13. Kf1 {[%clk 0:01:19]} 13... Qa6 {[%clk 0:01:49]} 14. g3
{[%clk 0:01:07.6]} 14... Nh6 {[%clk 0:01:46.5]} 15. Kg2 {[%clk 0:01:03.8]} 15...
Bxd3 {[%clk 0:01:46.1]} 16. Nxd3 {[%clk 0:01:01.7]} 16... Nf5 {[%clk 0:01:45.6]}
17. Bg5 {[%clk 0:00:47.9]} 17... Qb6 {[%clk 0:01:42.5]} 18. Rc1 {[%clk
0:00:29.9]} 18... Bf8 {[%clk 0:01:29.8]} 19. b4 {[%clk 0:00:26]} 19... a6 {[%clk
0:01:18.4]} 20. a3 {[%clk 0:00:22.8]} 20... a5 {[%clk 0:01:09.5]} 21. Nc5 {[%clk
0:00:21.6]} 21... axb4 {[%clk 0:01:02.1]} 22. axb4 {[%clk 0:00:22.5]} 22... Bxc5
{[%clk 0:01:01.2]} 23. bxc5 {[%clk 0:00:20.1]} 23... Qa6 {[%clk 0:00:52]} 24.
Rb1 {[%clk 0:00:20.1]} 24... Kd7 {[%clk 0:00:50.8]} 25. Qb3 {[%clk 0:00:18.7]}
25... Rhb8 {[%clk 0:00:50]} 26. Rhd1 {[%clk 0:00:17.8]} 26... Qa4 {[%clk
0:00:45.1]} 27. Qd3 {[%clk 0:00:15.6]} 27... Qc4 {[%clk 0:00:40.9]} 28. Qd2
{[%clk 0:00:14.1]} 28... Ra2 {[%clk 0:00:39.2]} 29. Rb2 {[%clk 0:00:12.6]} 29...
Rxb2 {[%clk 0:00:37.7]} 30. Qxb2 {[%clk 0:00:13.5]} 30... Qb4 {[%clk 0:00:34.7]}
31. Qa1 {[%clk 0:00:10.8]} 31... Qa5 {[%clk 0:00:25.3]} 32. Qb2 {[%clk
0:00:09.9]} 32... Qa4 {[%clk 0:00:24.9]} 33. Ra1 {[%clk 0:00:08.8]} 33... Qb4
{[%clk 0:00:24]} 34. Qxb4 {[%clk 0:00:05.9]} 34... Nxb4 {[%clk 0:00:23.2]} 35.
h3 {[%clk 0:00:06]} 35... Nc6 {[%clk 0:00:22.5]} 36. Ra4 {[%clk 0:00:05]} 36...
Kc7 {[%clk 0:00:20.8]} 37. g4 {[%clk 0:00:05.1]} 37... hxg4 {[%clk 0:00:19]} 38.
hxg4 {[%clk 0:00:06]} 38... Nfe7 {[%clk 0:00:17.6]} 39. Be3 {[%clk 0:00:04.7]}
39... Nc8 {[%clk 0:00:17.2]} 40. Ng5 {[%clk 0:00:04.3]} 40... b6 {[%clk
0:00:16.2]} 41. Nxf7 {[%clk 0:00:03.3]} 41... b5 {[%clk 0:00:15.7]} 42. Ra1
{[%clk 0:00:02.4]} 42... b4 {[%clk 0:00:15.9]} 43. Nh8 {[%clk 0:00:02.4]} 43...
b3 {[%clk 0:00:15.6]} 44. Rb1 {[%clk 0:00:03.3]} 44... g5 {[%clk 0:00:14.9]} 45.
Nf7 {[%clk 0:00:02.9]} 45... N8e7 {[%clk 0:00:14.2]} 46. Nxg5 {[%clk 0:00:03]}
46... Ng6 {[%clk 0:00:14.2]} 47. Nxe6+ {[%clk 0:00:03.1]} 47... Kd7 {[%clk
0:00:12.4]} 48. Ng5 {[%clk 0:00:03.2]} 48... Nh4+ {[%clk 0:00:12]} 49. Kg3
{[%clk 0:00:02.9]} 49... Ng6 {[%clk 0:00:12.1]} 50. f4 {[%clk 0:00:03.8]} 50...
Rb4 {[%clk 0:00:11.3]} 51. f5 {[%clk 0:00:04]} 51... Ngxe5 {[%clk 0:00:11.2]}
52. dxe5 {[%clk 0:00:03.1]} 52... Nxe5 {[%clk 0:00:11.7]} 53. Bf4 {[%clk
0:00:02.7]} 53... Nd3 {[%clk 0:00:11.6]} 54. Be3 {[%clk 0:00:01.1]} 54... d4
{[%clk 0:00:11.2]} 0-1

[Event "*** Titled Tuesday Blitz"]
[Site "Chess.com"]
[Date "2020.12.29"]
[Round "10"]
[White "FlySooHigh"]
[Black "Macron20hTF1"]
[Result "1/2-1/2"]
[WhiteElo "2653"]
[BlackElo "2506"]
[TimeControl "180+1"]
[EndTime "11:56:08 PST"]
[Termination "Game drawn - insufficient material"]

1. e4 {[%clk 0:03:00.9]} 1... g6 {[%clk 0:02:59.1]} 2. d4 {[%clk 0:03:00]} 2...
Bg7 {[%clk 0:02:59.6]} 3. Nc3 {[%clk 0:02:58.9]} 3... d6 {[%clk 0:03:00]} 4. f4
{[%clk 0:02:57.8]} 4... a6 {[%clk 0:02:59.6]} 5. Nf3 {[%clk 0:02:57.3]} 5... b5
{[%clk 0:03:00.1]} 6. Bd3 {[%clk 0:02:56.4]} 6... Nd7 {[%clk 0:03:00.3]} 7. O-O
{[%clk 0:02:55.2]} 7... c5 {[%clk 0:03:00.9]} 8. Be3 {[%clk 0:02:44]} 8... Bb7
{[%clk 0:03:00.7]} 9. Kh1 {[%clk 0:02:42.1]} 9... Qc7 {[%clk 0:02:46.9]} 10. e5
{[%clk 0:02:18]} 10... Nh6 {[%clk 0:02:43.8]} 11. exd6 {[%clk 0:01:55.4]} 11...
exd6 {[%clk 0:02:40.7]} 12. dxc5 {[%clk 0:01:44.3]} 12... dxc5 {[%clk
0:02:24.3]} 13. f5 {[%clk 0:01:40.1]} 13... O-O {[%clk 0:02:23.9]} 14. fxg6
{[%clk 0:01:33.2]} 14... hxg6 {[%clk 0:02:22.8]} 15. Qd2 {[%clk 0:01:27.3]}
15... Ng4 {[%clk 0:02:18.9]} 16. Bf4 {[%clk 0:01:26.9]} 16... Nde5 {[%clk
0:02:03.3]} 17. Be4 {[%clk 0:01:10.6]} 17... Rad8 {[%clk 0:01:53.7]} 18. Qe1
{[%clk 0:01:09.9]} 18... Rfe8 {[%clk 0:01:25.9]} 19. Qh4 {[%clk 0:00:46.7]}
19... b4 {[%clk 0:00:48.3]} 20. Bxb7 {[%clk 0:00:29.5]} 20... Qxb7 {[%clk
0:00:40.8]} 21. Na4 {[%clk 0:00:29]} 21... Qc6 {[%clk 0:00:15.8]} 22. Ng5 {[%clk
0:00:10.1]} 22... Nh6 {[%clk 0:00:14.5]} 23. b3 {[%clk 0:00:08.9]} 23... f6
{[%clk 0:00:13.1]} 24. Bxe5 {[%clk 0:00:05]} 24... Rxe5 {[%clk 0:00:12.7]} 25.
Nf3 {[%clk 0:00:05]} 25... Re4 {[%clk 0:00:13.1]} 26. Qg3 {[%clk 0:00:04.6]}
26... Kh7 {[%clk 0:00:12.2]} 27. Nb2 {[%clk 0:00:03.6]} 27... Re3 {[%clk
0:00:10.7]} 28. Nc4 {[%clk 0:00:03]} 28... Rc3 {[%clk 0:00:09.3]} 29. Rf2 {[%clk
0:00:01.7]} 29... Nf5 {[%clk 0:00:08.9]} 30. Qh3+ {[%clk 0:00:01.7]} 30... Kg8
{[%clk 0:00:09.3]} 31. Raf1 {[%clk 0:00:02.2]} 31... Nd4 {[%clk 0:00:08.3]} 32.
Rg1 {[%clk 0:00:03.1]} 32... Nxf3 {[%clk 0:00:08.3]} 33. gxf3 {[%clk 0:00:02.9]}
33... g5 {[%clk 0:00:07.4]} 34. Qg3 {[%clk 0:00:03.8]} 34... Bf8 {[%clk
0:00:06.9]} 35. Qg4 {[%clk 0:00:04]} 35... Qd7 {[%clk 0:00:06.4]} 36. h4 {[%clk
0:00:04.2]} 36... Qxg4 {[%clk 0:00:06.5]} 37. Rxg4 {[%clk 0:00:05.1]} 37... Bh6
{[%clk 0:00:06.8]} 38. hxg5 {[%clk 0:00:05.6]} 38... fxg5 {[%clk 0:00:07]} 39.
f4 {[%clk 0:00:05.7]} 39... Rh3+ {[%clk 0:00:06.4]} 40. Kg2 {[%clk 0:00:06.1]}
40... Rh4 {[%clk 0:00:07.3]} 41. Rxh4 {[%clk 0:00:06]} 41... gxh4 {[%clk
0:00:08.2]} 42. Kf3 {[%clk 0:00:06.6]} 42... Kf7 {[%clk 0:00:08.6]} 43. Ne5+
{[%clk 0:00:07.1]} 43... Ke6 {[%clk 0:00:08.6]} 44. Ng4 {[%clk 0:00:07.6]} 44...
Bg7 {[%clk 0:00:08.5]} 45. Re2+ {[%clk 0:00:08.5]} 45... Kf7 {[%clk 0:00:08.4]}
46. Rh2 {[%clk 0:00:08.4]} 46... Rd1 {[%clk 0:00:08.1]} 47. Rxh4 {[%clk
0:00:07.9]} 47... Ra1 {[%clk 0:00:08.6]} 48. Rh2 {[%clk 0:00:08.3]} 48... Rxa2
{[%clk 0:00:08.8]} 49. Ne3 {[%clk 0:00:08.9]} 49... a5 {[%clk 0:00:09.1]} 50.
Nc4 {[%clk 0:00:08.7]} 50... a4 {[%clk 0:00:09.5]} 51. bxa4 {[%clk 0:00:09.4]}
51... b3 {[%clk 0:00:09.9]} 52. Ke4 {[%clk 0:00:10.3]} 52... bxc2 {[%clk
0:00:09.8]} 53. Rh1 {[%clk 0:00:10]} 53... Ra1 {[%clk 0:00:10.1]} 54. Rxa1
{[%clk 0:00:08.1]} 54... Bxa1 {[%clk 0:00:11]} 55. Ne5+ {[%clk 0:00:07.8]} 55...
Kg8 {[%clk 0:00:10.7]} 56. Nd3 {[%clk 0:00:08.7]} 56... c4 {[%clk 0:00:11.2]}
57. Nc1 {[%clk 0:00:08.4]} 57... Bb2 {[%clk 0:00:11.7]} 58. Ne2 {[%clk
0:00:08.1]} 58... c1=Q {[%clk 0:00:11.6]} 59. Nxc1 {[%clk 0:00:08.6]} 59... Bxc1
{[%clk 0:00:12.5]} 60. Kd4 {[%clk 0:00:09.4]} 60... Bxf4 {[%clk 0:00:12.7]} 61.
Kxc4 {[%clk 0:00:09.9]} 61... Bd2 {[%clk 0:00:13.1]} 62. Kb5 {[%clk 0:00:10.4]}
62... Kf7 {[%clk 0:00:13.4]} 63. a5 {[%clk 0:00:11]} 63... Bxa5 {[%clk
0:00:13.5]} 1/2-1/2

[Event "*** Titled Tuesday Blitz"]
[Site "Chess.com"]
[Date "2020.12.29"]
[Round "10"]
[White "Logman74"]
[Black "Lion-Al-Messi"]
[Result "0-1"]
[WhiteElo "2389"]
[BlackElo "2543"]
[TimeControl "180+1"]
[EndTime "11:56:16 PST"]
[Termination "Lion-Al-Messi won on time"]

1. e4 {[%clk 0:03:00.9]} 1... e6 {[%clk 0:03:00.6]} 2. d4 {[%clk 0:03:00.4]}
2... d5 {[%clk 0:03:01.5]} 3. Nd2 {[%clk 0:02:59.7]} 3... c5 {[%clk 0:03:01.5]}
4. exd5 {[%clk 0:02:59.2]} 4... Qxd5 {[%clk 0:03:02.4]} 5. Ngf3 {[%clk
0:02:59.1]} 5... cxd4 {[%clk 0:03:02.8]} 6. Bc4 {[%clk 0:02:59.6]} 6... Qd6
{[%clk 0:03:03.3]} 7. O-O {[%clk 0:02:58.9]} 7... Nf6 {[%clk 0:03:03.6]} 8. Nb3
{[%clk 0:02:58.5]} 8... Nc6 {[%clk 0:03:03.9]} 9. Nbxd4 {[%clk 0:02:57.7]} 9...
Nxd4 {[%clk 0:03:04.8]} 10. Nxd4 {[%clk 0:02:58]} 10... Be7 {[%clk 0:03:05.3]}
11. b3 {[%clk 0:02:56.8]} 11... O-O {[%clk 0:03:03]} 12. Bb2 {[%clk 0:02:56.7]}
12... a6 {[%clk 0:03:03.5]} 13. Qf3 {[%clk 0:02:55.7]} 13... Qc7 {[%clk
0:02:57.2]} 14. Rfe1 {[%clk 0:02:52.1]} 14... Rb8 {[%clk 0:02:56.9]} 15. Rad1
{[%clk 0:02:38.2]} 15... b5 {[%clk 0:02:56.7]} 16. Nf5 {[%clk 0:02:33.9]} 16...
exf5 {[%clk 0:02:52.4]} 17. Be5 {[%clk 0:02:33.2]} 17... Qb7 {[%clk 0:02:29.9]}
18. Bxb8 {[%clk 0:02:31]} 18... Qxb8 {[%clk 0:02:27.3]} 19. Rxe7 {[%clk
0:02:07.8]} 19... bxc4 {[%clk 0:02:26.8]} 20. Qc6 {[%clk 0:02:00.5]} 20... Be6
{[%clk 0:02:20.5]} 21. Qxa6 {[%clk 0:01:57.1]} 21... c3 {[%clk 0:02:17]} 22. a4
{[%clk 0:01:49.2]} 22... Ne4 {[%clk 0:02:16.9]} 23. a5 {[%clk 0:01:31.6]} 23...
Qf4 {[%clk 0:02:14]} 24. Qe2 {[%clk 0:01:30.7]} 24... Bc8 {[%clk 0:01:43.3]} 25.
f3 {[%clk 0:00:59.2]} 25... Nd2 {[%clk 0:01:42.9]} 26. Re8 {[%clk 0:00:51.2]}
26... g6 {[%clk 0:01:08.6]} 27. Rxf8+ {[%clk 0:00:46.2]} 27... Kxf8 {[%clk
0:01:09.5]} 28. a6 {[%clk 0:00:46.5]} 28... Qd4+ {[%clk 0:00:49.9]} 29. Qf2
{[%clk 0:00:44.3]} 29... Qxf2+ {[%clk 0:00:49.5]} 30. Kxf2 {[%clk 0:00:44.6]}
30... Bxa6 {[%clk 0:00:50.2]} 31. Ke3 {[%clk 0:00:44.9]} 31... Bf1 {[%clk
0:00:39.5]} 32. g3 {[%clk 0:00:40.9]} 32... Bg2 {[%clk 0:00:39.6]} 33. Kd4
{[%clk 0:00:38.7]} 33... Bxf3 {[%clk 0:00:38.9]} 34. Ra1 {[%clk 0:00:37]} 34...
Ne4 {[%clk 0:00:38.4]} 35. b4 {[%clk 0:00:36.2]} 35... Nd6 {[%clk 0:00:26.2]}
36. Kxc3 {[%clk 0:00:33.7]} 36... Ke7 {[%clk 0:00:26.6]} 37. Kd4 {[%clk
0:00:32.5]} 37... Kd7 {[%clk 0:00:25.2]} 38. c4 {[%clk 0:00:32.3]} 38... f6
{[%clk 0:00:23.5]} 39. Ra7+ {[%clk 0:00:31.8]} 39... Ke6 {[%clk 0:00:20.6]} 40.
b5 {[%clk 0:00:30.1]} 40... Be2 {[%clk 0:00:20.2]} 41. b6 {[%clk 0:00:27.4]}
41... Bf3 {[%clk 0:00:20.5]} 42. Rxh7 {[%clk 0:00:23.8]} 42... g5 {[%clk
0:00:20.2]} 43. c5 {[%clk 0:00:23.1]} 43... Nb7 {[%clk 0:00:14.2]} 44. Rc7
{[%clk 0:00:19.9]} 44... Na5 {[%clk 0:00:12.5]} 45. Ke3 {[%clk 0:00:17.3]} 45...
Bd5 {[%clk 0:00:12.4]} 46. h4 {[%clk 0:00:16.8]} 46... f4+ {[%clk 0:00:12]} 47.
gxf4 {[%clk 0:00:16.7]} 47... gxh4 {[%clk 0:00:12.2]} 48. Rh7 {[%clk 0:00:16.5]}
48... Nb7 {[%clk 0:00:11.1]} 49. Rxh4 {[%clk 0:00:15.5]} 49... Nxc5 {[%clk
0:00:11.3]} 50. f5+ {[%clk 0:00:13.1]} 50... Kd6 {[%clk 0:00:09.9]} 51. Rh7
{[%clk 0:00:12.2]} 51... Nb7 {[%clk 0:00:09.5]} 52. Kd4 {[%clk 0:00:12.1]} 52...
Bc6 {[%clk 0:00:08.6]} 53. Rc7 {[%clk 0:00:12]} 53... Nc5 {[%clk 0:00:06.6]} 54.
Rf7 {[%clk 0:00:11.2]} 54... Nd7 {[%clk 0:00:05.9]} 55. Ke3 {[%clk 0:00:05.9]}
55... Bb7 {[%clk 0:00:06]} 56. Kf4 {[%clk 0:00:04.7]} 56... Kc6 {[%clk
0:00:05.9]} 57. Kg3 {[%clk 0:00:03.4]} 57... Bc8 {[%clk 0:00:06.1]} 0-1